[Event "Early-Titled-Tuesday-Blitz-October-17-2023"]
[Site "Chess.com"]
[Date "2023.10.17"]
[Round "2"]
[White "ellatambien"]
[Black "Baku_Boulevard"]
[Result "0-1"]
[WhiteElo "2620"]
[BlackElo "3015"]
[TimeControl "180+1"]
[EndTime "8:14:55 PDT"]
[Termination "Baku_Boulevard won by resignation"]

1. c4 {[%clk 0:03:00.9]} 1... Nf6 {[%clk 0:02:58.1]} 2. Nc3 {[%clk 0:02:58.8]}
2... g6 {[%clk 0:02:58.2]} 3. e4 {[%clk 0:02:56.7]} 3... e5 {[%clk 0:02:57.8]}
4. Nf3 {[%clk 0:02:53.3]} 4... Bg7 {[%clk 0:02:58.4]} 5. d4 {[%clk 0:02:51]}
5... exd4 {[%clk 0:02:57.8]} 6. Nxd4 {[%clk 0:02:49.3]} 6... O-O {[%clk
0:02:58]} 7. Be2 {[%clk 0:02:22.5]} 7... Re8 {[%clk 0:02:57.7]} 8. f3 {[%clk
0:02:19.3]} 8... c6 {[%clk 0:02:57.9]} 9. Nc2 {[%clk 0:02:09.9]} 9... d5 {[%clk
0:02:55.7]} 10. cxd5 {[%clk 0:02:09.2]} 10... cxd5 {[%clk 0:02:55.9]} 11. exd5
{[%clk 0:02:09.8]} 11... Bf5 {[%clk 0:02:52.9]} 12. Ne3 {[%clk 0:02:05.5]} 12...
Bd7 {[%clk 0:02:47.1]} 13. O-O {[%clk 0:02:03.1]} 13... Qb6 {[%clk 0:02:46.6]}
14. Qb3 {[%clk 0:01:49.4]} 14... Nh5 {[%clk 0:02:24.3]} 15. Qxb6 {[%clk
0:01:46.7]} 15... axb6 {[%clk 0:02:25.2]} 16. Nc4 {[%clk 0:01:44.8]} 16... Bxc3
{[%clk 0:02:24.6]} 17. bxc3 {[%clk 0:01:42.7]} 17... Rxe2 {[%clk 0:02:24.6]} 18.
Nxb6 {[%clk 0:01:43.2]} 18... Ra6 {[%clk 0:02:23]} 19. Nxd7 {[%clk 0:01:39.9]}
19... Nxd7 {[%clk 0:02:23.9]} 20. a4 {[%clk 0:01:35.9]} 20... Nhf6 {[%clk
0:02:21.6]} 21. c4 {[%clk 0:01:35.4]} 21... Rc2 {[%clk 0:02:21]} 0-1

[Event "Early-Titled-Tuesday-Blitz-October-17-2023"]
[Site "Chess.com"]
[Date "2023.10.17"]
[Round "2"]
[White "JimDiGrease"]
[Black "temiksmozg"]
[Result "1-0"]
[WhiteElo "2889"]
[BlackElo "2603"]
[TimeControl "180+1"]
[EndTime "8:15:00 PDT"]
[Termination "JimDiGrease won by checkmate"]

1. d4 {[%clk 0:03:00.9]} 1... Nf6 {[%clk 0:02:59.5]} 2. c4 {[%clk 0:03:01.1]}
2... e6 {[%clk 0:02:59.8]} 3. Bf4 {[%clk 0:03:00.9]} 3... d5 {[%clk 0:02:56.4]}
4. Nc3 {[%clk 0:03:01.2]} 4... c6 {[%clk 0:02:56]} 5. e3 {[%clk 0:02:54.7]} 5...
Bd6 {[%clk 0:02:55.8]} 6. Bg3 {[%clk 0:02:54.1]} 6... O-O {[%clk 0:02:55.9]} 7.
Nf3 {[%clk 0:02:54.6]} 7... dxc4 {[%clk 0:02:54.1]} 8. Bxc4 {[%clk 0:02:54.5]}
8... b5 {[%clk 0:02:54.1]} 9. Bd3 {[%clk 0:02:52.7]} 9... Bb7 {[%clk 0:02:54.5]}
10. a4 {[%clk 0:02:47.4]} 10... a6 {[%clk 0:02:52.4]} 11. O-O {[%clk 0:02:45.6]}
11... Bxg3 {[%clk 0:02:51.3]} 12. hxg3 {[%clk 0:02:45.5]} 12... Nbd7 {[%clk
0:02:48.7]} 13. Rc1 {[%clk 0:02:38]} 13... h6 {[%clk 0:02:48.6]} 14. Ne4 {[%clk
0:02:24]} 14... Nxe4 {[%clk 0:02:47.4]} 15. Bxe4 {[%clk 0:02:24.9]} 15... Nf6
{[%clk 0:02:48.2]} 16. Bxc6 {[%clk 0:02:24.6]} 16... Bxc6 {[%clk 0:02:44.7]} 17.
Rxc6 {[%clk 0:02:25.5]} 17... Qd5 {[%clk 0:02:36.2]} 18. Qc2 {[%clk 0:02:24.2]}
18... bxa4 {[%clk 0:02:35.6]} 19. Qxa4 {[%clk 0:02:22.4]} 19... Rab8 {[%clk
0:02:32.4]} 20. Rc2 {[%clk 0:02:05.3]} 20... Rb6 {[%clk 0:02:29.5]} 21. Rfc1
{[%clk 0:02:01.2]} 21... Ne4 {[%clk 0:02:27.7]} 22. Ne5 {[%clk 0:01:56]} 22...
Rfb8 {[%clk 0:02:18.1]} 23. Rc8+ {[%clk 0:01:52.1]} 23... Kh7 {[%clk 0:02:18]}
24. Qe8 {[%clk 0:01:50.9]} 24... Rxc8 {[%clk 0:02:06.4]} 25. Rxc8 {[%clk
0:01:51.8]} 25... h5 {[%clk 0:02:06.9]} 26. Qh8# {[%clk 0:01:51.5]} 1-0

[Event "Early-Titled-Tuesday-Blitz-October-17-2023"]
[Site "Chess.com"]
[Date "2023.10.17"]
[Round "2"]
[White "GlavkonVVS"]
[Black "DopplerCharlotteDeWitte"]
[Result "1-0"]
[WhiteElo "2581"]
[BlackElo "2794"]
[TimeControl "180+1"]
[EndTime "8:15:10 PDT"]
[Termination "GlavkonVVS won by resignation"]

1. c4 {[%clk 0:03:00.9]} 1... e6 {[%clk 0:02:58.6]} 2. Nc3 {[%clk 0:03:00.7]}
2... d5 {[%clk 0:02:59.5]} 3. d4 {[%clk 0:03:01.2]} 3... Nf6 {[%clk 0:02:59.3]}
4. Nf3 {[%clk 0:03:01.5]} 4... Bb4 {[%clk 0:02:53.3]} 5. Bg5 {[%clk 0:03:00.9]}
5... h6 {[%clk 0:02:51.1]} 6. Bh4 {[%clk 0:03:00.7]} 6... g5 {[%clk 0:02:46.5]}
7. Bg3 {[%clk 0:03:00.1]} 7... Ne4 {[%clk 0:02:47.2]} 8. Qc2 {[%clk 0:02:56.6]}
8... h5 {[%clk 0:02:40.7]} 9. e3 {[%clk 0:02:23.3]} 9... h4 {[%clk 0:02:38.5]}
10. Be5 {[%clk 0:02:19.4]} 10... f6 {[%clk 0:02:38.3]} 11. Bd3 {[%clk
0:02:13.1]} 11... fxe5 {[%clk 0:02:33.7]} 12. Bxe4 {[%clk 0:02:13.3]} 12... dxe4
{[%clk 0:02:33.8]} 13. Qxe4 {[%clk 0:02:13.6]} 13... Bxc3+ {[%clk 0:02:18.1]}
14. bxc3 {[%clk 0:02:13.2]} 14... exd4 {[%clk 0:02:05.5]} 15. Qg6+ {[%clk
0:02:12.3]} 15... Kf8 {[%clk 0:02:04.6]} 16. Nxg5 {[%clk 0:02:06.3]} 16... Qe7
{[%clk 0:02:04.6]} 17. O-O-O {[%clk 0:01:57.2]} 17... Nc6 {[%clk 0:01:56.1]} 18.
exd4 {[%clk 0:01:54]} 18... Rg8 {[%clk 0:01:50.1]} 19. Nh7+ {[%clk 0:01:51.8]}
1-0

[Event "Early-Titled-Tuesday-Blitz-October-17-2023"]
[Site "Chess.com"]
[Date "2023.10.17"]
[Round "2"]
[White "Sofia_Blokhin"]
[Black "Mr_Lion22"]
[Result "0-1"]
[WhiteElo "2304"]
[BlackElo "2520"]
[TimeControl "180+1"]
[EndTime "8:15:11 PDT"]
[Termination "Mr_Lion22 won by resignation"]

1. d4 {[%clk 0:03:00.9]} 1... Nf6 {[%clk 0:02:57.7]} 2. c4 {[%clk 0:03:00]} 2...
g6 {[%clk 0:02:56.9]} 3. Nc3 {[%clk 0:03:00.1]} 3... Bg7 {[%clk 0:02:57.3]} 4.
e4 {[%clk 0:03:00.7]} 4... d6 {[%clk 0:02:57.4]} 5. f3 {[%clk 0:03:01.1]} 5...
O-O {[%clk 0:02:58.1]} 6. Be3 {[%clk 0:03:01]} 6... e5 {[%clk 0:02:49.6]} 7. d5
{[%clk 0:03:00.4]} 7... c6 {[%clk 0:02:48]} 8. Bd3 {[%clk 0:02:59.3]} 8... cxd5
{[%clk 0:02:47.2]} 9. cxd5 {[%clk 0:02:57.1]} 9... a6 {[%clk 0:02:46.7]} 10.
Nge2 {[%clk 0:02:57]} 10... b5 {[%clk 0:02:46.3]} 11. a4 {[%clk 0:02:55.2]}
11... b4 {[%clk 0:02:46.3]} 12. Na2 {[%clk 0:02:54.8]} 12... a5 {[%clk
0:02:46.4]} 13. O-O {[%clk 0:02:52.3]} 13... Ba6 {[%clk 0:02:42.8]} 14. Nac1
{[%clk 0:02:47.4]} 14... Nfd7 {[%clk 0:02:41.8]} 15. b3 {[%clk 0:02:37.8]} 15...
f5 {[%clk 0:02:39.6]} 16. exf5 {[%clk 0:02:35.3]} 16... gxf5 {[%clk 0:02:36]}
17. Rb1 {[%clk 0:02:32.1]} 17... Bxd3 {[%clk 0:02:31]} 18. Nxd3 {[%clk
0:02:29.7]} 18... Na6 {[%clk 0:02:30.1]} 19. Nb2 {[%clk 0:02:28.8]} 19... Nac5
{[%clk 0:02:28.9]} 20. Nc4 {[%clk 0:02:26.2]} 20... Qe7 {[%clk 0:02:28.1]} 21.
f4 {[%clk 0:02:22.4]} 21... Rae8 {[%clk 0:02:11.5]} 22. fxe5 {[%clk 0:02:14.8]}
22... Nxe5 {[%clk 0:02:12.4]} 23. Nxa5 {[%clk 0:02:08.7]} 23... Ng4 {[%clk
0:01:58.4]} 24. Bxc5 {[%clk 0:02:04.7]} 24... dxc5 {[%clk 0:01:59.3]} 25. Re1
{[%clk 0:01:55.2]} 25... Qe3+ {[%clk 0:01:58.9]} 26. Kh1 {[%clk 0:01:51.2]}
26... Nf2+ {[%clk 0:01:59.3]} 0-1

[Event "Early-Titled-Tuesday-Blitz-October-17-2023"]
[Site "Chess.com"]
[Date "2023.10.17"]
[Round "2"]
[White "tomesao"]
[Black "midedu"]
[Result "0-1"]
[WhiteElo "2406"]
[BlackElo "2002"]
[TimeControl "180+1"]
[EndTime "8:15:21 PDT"]
[Termination "midedu won by resignation"]

1. e4 {[%clk 0:02:57.2]} 1... c5 {[%clk 0:02:59.3]} 2. Nf3 {[%clk 0:02:57.1]}
2... Nc6 {[%clk 0:02:59.8]} 3. d4 {[%clk 0:02:56.5]} 3... cxd4 {[%clk
0:03:00.1]} 4. Nxd4 {[%clk 0:02:57.4]} 4... Nf6 {[%clk 0:02:59.9]} 5. Nc3 {[%clk
0:02:57.3]} 5... Qb6 {[%clk 0:02:59.3]} 6. Ndb5 {[%clk 0:02:55.2]} 6... a6
{[%clk 0:02:50.1]} 7. Be3 {[%clk 0:02:55]} 7... Qa5 {[%clk 0:02:49]} 8. Na3
{[%clk 0:02:42.1]} 8... Nxe4 {[%clk 0:02:45.6]} 9. Nc4 {[%clk 0:02:40.5]} 9...
Nxc3 {[%clk 0:02:45.3]} 10. Qd3 {[%clk 0:02:28.4]} 10... Ne5 {[%clk 0:02:08.6]}
11. Nxa5 {[%clk 0:02:04.6]} 11... Nxd3+ {[%clk 0:02:08.3]} 12. Bxd3 {[%clk
0:02:03.6]} 12... Nd5 {[%clk 0:02:08.3]} 13. Bd4 {[%clk 0:01:59.4]} 13... e6
{[%clk 0:01:54.2]} 14. Be4 {[%clk 0:01:58.8]} 14... Bb4+ {[%clk 0:01:47.5]} 15.
c3 {[%clk 0:01:39.3]} 15... Bxa5 {[%clk 0:01:46.6]} 16. Bxd5 {[%clk 0:01:39.5]}
16... exd5 {[%clk 0:01:46]} 17. Bxg7 {[%clk 0:01:40.1]} 17... Rg8 {[%clk
0:01:43.4]} 18. Bf6 {[%clk 0:01:39.1]} 18... d6 {[%clk 0:01:43.2]} 19. Kd2
{[%clk 0:01:38.5]} 19... Rxg2 {[%clk 0:01:41.7]} 0-1

[Event "Early-Titled-Tuesday-Blitz-October-17-2023"]
[Site "Chess.com"]
[Date "2023.10.17"]
[Round "2"]
[White "Djager97"]
[Black "VincentKeymer"]
[Result "0-1"]
[WhiteElo "2626"]
[BlackElo "3091"]
[TimeControl "180+1"]
[EndTime "8:15:24 PDT"]
[Termination "VincentKeymer won by resignation"]

1. e4 {[%clk 0:03:00.9]} 1... c6 {[%clk 0:02:59.8]} 2. d4 {[%clk 0:03:00.7]}
2... d5 {[%clk 0:03:00.7]} 3. exd5 {[%clk 0:03:01.4]} 3... cxd5 {[%clk
0:03:01.6]} 4. Bd3 {[%clk 0:03:00.9]} 4... Nf6 {[%clk 0:03:01.3]} 5. h3 {[%clk
0:02:59.1]} 5... Nc6 {[%clk 0:03:01.5]} 6. c3 {[%clk 0:02:59.2]} 6... e5 {[%clk
0:03:01.7]} 7. dxe5 {[%clk 0:02:59.1]} 7... Nxe5 {[%clk 0:03:02.6]} 8. Nf3
{[%clk 0:02:59.6]} 8... Nxd3+ {[%clk 0:03:03]} 9. Qxd3 {[%clk 0:03:00.5]} 9...
Bd6 {[%clk 0:03:03.5]} 10. O-O {[%clk 0:03:00.1]} 10... O-O {[%clk 0:03:03.9]}
11. Bg5 {[%clk 0:03:00.7]} 11... h6 {[%clk 0:03:04.4]} 12. Bh4 {[%clk
0:02:59.4]} 12... Bf4 {[%clk 0:03:04.4]} 13. Nbd2 {[%clk 0:02:45.9]} 13... Qb6
{[%clk 0:03:03.6]} 14. Nb3 {[%clk 0:02:38.1]} 14... g5 {[%clk 0:03:03.1]} 15. g3
{[%clk 0:02:16]} 15... Bc7 {[%clk 0:02:55.1]} 16. Nxg5 {[%clk 0:01:59.4]} 16...
hxg5 {[%clk 0:02:47]} 17. Bxg5 {[%clk 0:02:00.3]} 17... Bxh3 {[%clk 0:02:47.2]}
18. Rfe1 {[%clk 0:01:54.2]} 18... Ne4 {[%clk 0:02:46.8]} 19. Be3 {[%clk
0:01:41.8]} 19... Qg6 {[%clk 0:02:46.7]} 20. Bd4 {[%clk 0:01:13.7]} 20... Rfe8
{[%clk 0:02:41.2]} 21. Re3 {[%clk 0:01:03.8]} 21... Ng5 {[%clk 0:02:40.1]} 22.
Nd2 {[%clk 0:00:48.6]} 22... Qxd3 {[%clk 0:02:38.7]} 23. Rxd3 {[%clk 0:00:49.3]}
23... Bf5 {[%clk 0:02:38.7]} 0-1

[Event "Early-Titled-Tuesday-Blitz-October-17-2023"]
[Site "Chess.com"]
[Date "2023.10.17"]
[Round "2"]
[White "garicradomir"]
[Black "surrenderPLS"]
[Result "0-1"]
[WhiteElo "2289"]
[BlackElo "2515"]
[TimeControl "180+1"]
[EndTime "8:15:24 PDT"]
[Termination "surrenderPLS won by resignation"]

1. e4 {[%clk 0:03:00.9]} 1... c5 {[%clk 0:02:59.9]} 2. Nf3 {[%clk 0:03:00.5]}
2... Nc6 {[%clk 0:02:59.4]} 3. Bb5 {[%clk 0:03:00.6]} 3... e5 {[%clk 0:02:59.2]}
4. O-O {[%clk 0:02:57.7]} 4... Bd6 {[%clk 0:02:58.7]} 5. c3 {[%clk 0:02:57]}
5... a6 {[%clk 0:02:58.7]} 6. Ba4 {[%clk 0:02:56.1]} 6... b5 {[%clk 0:02:58.9]}
7. Bc2 {[%clk 0:02:56.1]} 7... Nge7 {[%clk 0:02:59]} 8. d3 {[%clk 0:02:56.5]}
8... O-O {[%clk 0:02:58.5]} 9. Re1 {[%clk 0:02:57.2]} 9... Rb8 {[%clk
0:02:57.5]} 10. Nbd2 {[%clk 0:02:57.8]} 10... Bc7 {[%clk 0:02:57.2]} 11. Nf1
{[%clk 0:02:58.4]} 11... d6 {[%clk 0:02:57.3]} 12. Ng3 {[%clk 0:02:58.8]} 12...
Be6 {[%clk 0:02:57]} 13. h3 {[%clk 0:02:59.1]} 13... h6 {[%clk 0:02:56.8]} 14.
a4 {[%clk 0:02:57.1]} 14... b4 {[%clk 0:02:56.4]} 15. c4 {[%clk 0:02:55.2]}
15... f5 {[%clk 0:02:34]} 16. b3 {[%clk 0:02:45.6]} 16... f4 {[%clk 0:02:32.6]}
17. Nf1 {[%clk 0:02:43.7]} 17... g5 {[%clk 0:02:32.8]} 18. Qd2 {[%clk
0:02:42.5]} 18... Qd7 {[%clk 0:02:31]} 19. N3h2 {[%clk 0:02:40.2]} 19... Nd4
{[%clk 0:02:29.7]} 20. Bd1 {[%clk 0:02:39.4]} 20... Rf7 {[%clk 0:02:23.8]} 21.
Bh5 {[%clk 0:02:37.5]} 21... Nxb3 {[%clk 0:02:23.5]} 22. Qb2 {[%clk 0:02:36.7]}
22... Nxa1 {[%clk 0:02:23.3]} 23. Qxa1 {[%clk 0:02:37.6]} 23... Rf6 {[%clk
0:02:19]} 24. Nd2 {[%clk 0:02:37.7]} 24... Nc6 {[%clk 0:02:17.8]} 25. Ndf3
{[%clk 0:02:37.5]} 25... Nd4 {[%clk 0:02:18]} 26. Nxd4 {[%clk 0:02:35.5]} 26...
cxd4 {[%clk 0:02:18.3]} 27. Bg4 {[%clk 0:02:35.8]} 27... b3 {[%clk 0:02:12.6]}
28. Bb2 {[%clk 0:02:34.8]} 28... Ba5 {[%clk 0:02:11]} 29. Rc1 {[%clk 0:02:33.4]}
29... Bc3 {[%clk 0:02:01.1]} 30. Qa3 {[%clk 0:02:20.9]} 30... Bxb2 {[%clk
0:01:57]} 31. Qxb2 {[%clk 0:02:20.7]} 31... Qxa4 {[%clk 0:01:56.3]} 32. Ra1
{[%clk 0:02:18.7]} 32... Qb4 {[%clk 0:01:54.9]} 33. Bxe6+ {[%clk 0:02:15.2]}
33... Rxe6 {[%clk 0:01:54.3]} 34. Rxa6 {[%clk 0:02:14.7]} 34... Qc3 {[%clk
0:01:53.6]} 35. Qa3 {[%clk 0:02:10.8]} 35... b2 {[%clk 0:01:50.6]} 0-1

[Event "Early-Titled-Tuesday-Blitz-October-17-2023"]
[Site "Chess.com"]
[Date "2023.10.17"]
[Round "2"]
[White "Egor_Koshulyan"]
[Black "Zorbos"]
[Result "1-0"]
[WhiteElo "2720"]
[BlackElo "2528"]
[TimeControl "180+1"]
[EndTime "8:15:42 PDT"]
[Termination "Egor_Koshulyan won by checkmate"]

1. e4 {[%clk 0:03:00.9]} 1... c5 {[%clk 0:03:00]} 2. Nf3 {[%clk 0:03:01.1]} 2...
d6 {[%clk 0:03:00.3]} 3. d4 {[%clk 0:03:00.4]} 3... cxd4 {[%clk 0:03:01.2]} 4.
Qxd4 {[%clk 0:03:00.2]} 4... a6 {[%clk 0:03:00.8]} 5. Be3 {[%clk 0:03:00]} 5...
Nc6 {[%clk 0:03:01.2]} 6. Qb6 {[%clk 0:03:00.2]} 6... Qxb6 {[%clk 0:02:56.1]} 7.
Bxb6 {[%clk 0:03:01.1]} 7... Nf6 {[%clk 0:02:56.9]} 8. Nc3 {[%clk 0:03:01.1]}
8... Nd7 {[%clk 0:02:56.8]} 9. Be3 {[%clk 0:03:00.9]} 9... g6 {[%clk 0:02:54.5]}
10. Nd5 {[%clk 0:02:59.8]} 10... Kd8 {[%clk 0:02:41.5]} 11. Ng5 {[%clk 0:02:59]}
11... Nde5 {[%clk 0:02:31]} 12. f4 {[%clk 0:02:43.2]} 12... h6 {[%clk
0:02:30.9]} 13. fxe5 {[%clk 0:02:42.7]} 13... hxg5 {[%clk 0:02:30.8]} 14. exd6
{[%clk 0:02:43.6]} 14... exd6 {[%clk 0:02:17.1]} 15. Bxg5+ {[%clk 0:02:42.1]}
15... Be7 {[%clk 0:02:16.4]} 16. Nxe7 {[%clk 0:02:40.6]} 16... Nxe7 {[%clk
0:02:16.3]} 17. O-O-O {[%clk 0:02:41.2]} 17... Kd7 {[%clk 0:02:09.2]} 18. e5
{[%clk 0:02:40.8]} 18... d5 {[%clk 0:02:05.6]} 19. c4 {[%clk 0:02:39.8]} 19...
Ke6 {[%clk 0:02:05.2]} 20. cxd5+ {[%clk 0:02:34.3]} 20... Kd7 {[%clk 0:01:35.3]}
21. e6+ {[%clk 0:02:17.3]} 21... Ke8 {[%clk 0:01:27.2]} 22. d6 {[%clk
0:02:13.6]} 22... Bxe6 {[%clk 0:01:06]} 23. dxe7 {[%clk 0:02:12.9]} 23... Bf5
{[%clk 0:01:00.3]} 24. Rd8+ {[%clk 0:02:11.9]} 24... Rxd8 {[%clk 0:01:00.1]} 25.
exd8=Q# {[%clk 0:02:12.8]} 1-0

[Event "Early-Titled-Tuesday-Blitz-October-17-2023"]
[Site "Chess.com"]
[Date "2023.10.17"]
[Round "2"]
[White "Arystanner"]
[Black "Balla_Tamas"]
[Result "1-0"]
[WhiteElo "2791"]
[BlackElo "2400"]
[TimeControl "180+1"]
[EndTime "8:15:50 PDT"]
[Termination "Arystanner won by resignation"]

1. e4 {[%clk 0:02:57.2]} 1... c5 {[%clk 0:02:59.4]} 2. Nf3 {[%clk 0:02:57.5]}
2... Nc6 {[%clk 0:03:00.1]} 3. Bc4 {[%clk 0:02:56.9]} 3... e6 {[%clk 0:02:59.9]}
4. O-O {[%clk 0:02:56.8]} 4... a6 {[%clk 0:03:00.4]} 5. d4 {[%clk 0:02:48.5]}
5... cxd4 {[%clk 0:02:57.6]} 6. Nxd4 {[%clk 0:02:49]} 6... Bc5 {[%clk
0:02:54.6]} 7. Be3 {[%clk 0:02:43]} 7... Ba7 {[%clk 0:02:33.8]} 8. Nxc6 {[%clk
0:02:39.7]} 8... bxc6 {[%clk 0:02:30.9]} 9. Bxa7 {[%clk 0:02:39.3]} 9... Rxa7
{[%clk 0:02:31.8]} 10. Qd4 {[%clk 0:02:39.8]} 10... Ra8 {[%clk 0:02:21.6]} 11.
Qxg7 {[%clk 0:02:39.4]} 11... Qf6 {[%clk 0:02:21.8]} 12. Qxf6 {[%clk 0:02:39.5]}
12... Nxf6 {[%clk 0:02:22.7]} 13. Nd2 {[%clk 0:02:39.1]} 13... d5 {[%clk
0:02:21.5]} 14. Bd3 {[%clk 0:02:39.5]} 14... a5 {[%clk 0:02:11.7]} 15. Rfe1
{[%clk 0:02:39.7]} 15... O-O {[%clk 0:02:07.7]} 16. b3 {[%clk 0:02:38.8]} 16...
Ba6 {[%clk 0:02:07.7]} 17. Bxa6 {[%clk 0:02:38.7]} 17... Rxa6 {[%clk 0:02:08.6]}
18. a4 {[%clk 0:02:39.1]} 18... c5 {[%clk 0:02:07]} 19. exd5 {[%clk 0:02:38.2]}
19... exd5 {[%clk 0:02:07.9]} 20. f3 {[%clk 0:02:37]} 20... Rc8 {[%clk
0:02:08.1]} 21. Rab1 {[%clk 0:02:35.1]} 21... Rac6 {[%clk 0:02:06.1]} 22. Kf2
{[%clk 0:02:34.9]} 22... c4 {[%clk 0:02:05]} 23. bxc4 {[%clk 0:02:35.8]} 23...
dxc4 {[%clk 0:02:05.9]} 24. Rb5 {[%clk 0:02:36.1]} 24... Rc5 {[%clk 0:02:05.9]}
25. Re5 {[%clk 0:02:36.3]} 25... Rxe5 {[%clk 0:02:02.9]} 26. Rxe5 {[%clk
0:02:37.2]} 26... c3 {[%clk 0:02:02.9]} 27. Nb3 {[%clk 0:02:37.4]} 27... Rd8
{[%clk 0:02:00.1]} 28. Rxa5 {[%clk 0:02:37]} 28... Nd5 {[%clk 0:01:58.6]} 29.
Rc5 {[%clk 0:02:36.4]} 29... Kf8 {[%clk 0:01:56.8]} 30. a5 {[%clk 0:02:34.2]}
30... Ke7 {[%clk 0:01:57]} 31. h4 {[%clk 0:02:26.2]} 31... Kd6 {[%clk 0:01:57]}
32. Rc4 {[%clk 0:02:26.7]} 32... h5 {[%clk 0:01:52.5]} 33. g4 {[%clk 0:02:25.3]}
33... hxg4 {[%clk 0:01:52.4]} 34. fxg4 {[%clk 0:02:26.2]} 34... Rh8 {[%clk
0:01:50.8]} 35. Kg3 {[%clk 0:02:23.4]} 35... Re8 {[%clk 0:01:48.1]} 36. h5
{[%clk 0:02:20.1]} 36... Re2 {[%clk 0:01:47.7]} 37. Nd4 {[%clk 0:02:19.5]} 37...
Re3+ {[%clk 0:01:48]} 38. Kh4 {[%clk 0:02:18.5]} 38... Re4 {[%clk 0:01:48.4]}
39. Nf5+ {[%clk 0:02:18.3]} 39... Ke5 {[%clk 0:01:48.8]} 40. Rxe4+ {[%clk
0:02:19.2]} 40... Kxe4 {[%clk 0:01:49.7]} 41. a6 {[%clk 0:02:16.6]} 1-0

[Event "Early-Titled-Tuesday-Blitz-October-17-2023"]
[Site "Chess.com"]
[Date "2023.10.17"]
[Round "2"]
[White "betta2004"]
[Black "itsdsyr"]
[Result "0-1"]
[WhiteElo "2494"]
[BlackElo "2295"]
[TimeControl "180+1"]
[EndTime "8:15:55 PDT"]
[Termination "itsdsyr won by resignation"]

1. e4 {[%clk 0:03:00.9]} 1... e5 {[%clk 0:02:58.2]} 2. Nf3 {[%clk 0:02:57.7]}
2... Nc6 {[%clk 0:02:56.9]} 3. c3 {[%clk 0:02:58.4]} 3... Nf6 {[%clk 0:02:52.6]}
4. d4 {[%clk 0:02:58.5]} 4... d5 {[%clk 0:02:51.9]} 5. dxe5 {[%clk 0:02:47.4]}
5... Nxe4 {[%clk 0:02:50.8]} 6. Bb5 {[%clk 0:02:45.7]} 6... Bc5 {[%clk
0:02:48.6]} 7. O-O {[%clk 0:02:44.2]} 7... O-O {[%clk 0:02:47.6]} 8. Nbd2 {[%clk
0:02:41.1]} 8... Bg4 {[%clk 0:02:38.4]} 9. h3 {[%clk 0:02:38.9]} 9... Nxd2
{[%clk 0:02:36.9]} 10. Bxd2 {[%clk 0:02:33]} 10... Bxf3 {[%clk 0:02:36.7]} 11.
Qxf3 {[%clk 0:02:33.9]} 11... Nxe5 {[%clk 0:02:36.8]} 12. Qg3 {[%clk 0:02:34.4]}
12... Ng6 {[%clk 0:02:35.8]} 13. Rad1 {[%clk 0:02:33.7]} 13... c6 {[%clk
0:02:35.6]} 14. Be2 {[%clk 0:02:32.9]} 14... Bd6 {[%clk 0:02:30.2]} 15. Qg4
{[%clk 0:02:28.6]} 15... Qf6 {[%clk 0:02:26.7]} 16. Bd3 {[%clk 0:02:20.1]} 16...
Rae8 {[%clk 0:02:22.2]} 17. Qh5 {[%clk 0:02:14.5]} 17... h6 {[%clk 0:02:20.8]}
18. Rde1 {[%clk 0:02:11.5]} 18... Bf4 {[%clk 0:02:15.5]} 19. Rxe8 {[%clk
0:01:54.7]} 19... Rxe8 {[%clk 0:01:49.9]} 20. Bxg6 {[%clk 0:01:54.2]} 20... fxg6
{[%clk 0:01:44]} 21. Qd1 {[%clk 0:01:53.5]} 21... Bc7 {[%clk 0:01:40.7]} 22. Be3
{[%clk 0:01:47.6]} 22... Qd6 {[%clk 0:01:39]} 23. Re1 {[%clk 0:01:43.6]} 23...
Qh2+ {[%clk 0:01:35.6]} 24. Kf1 {[%clk 0:01:44.1]} 24... Qh1+ {[%clk 0:01:35.9]}
25. Ke2 {[%clk 0:01:44.5]} 25... Qxg2 {[%clk 0:01:36.7]} 26. Qd4 {[%clk
0:01:44.2]} 26... Bb6 {[%clk 0:01:28.5]} 0-1

[Event "Early-Titled-Tuesday-Blitz-October-17-2023"]
[Site "Chess.com"]
[Date "2023.10.17"]
[Round "2"]
[White "GregLeBarbare"]
[Black "Manukyan_Artak"]
[Result "0-1"]
[WhiteElo "2204"]
[BlackElo "2474"]
[TimeControl "180+1"]
[EndTime "8:15:58 PDT"]
[Termination "Manukyan_Artak won by resignation"]

1. d4 {[%clk 0:02:55]} 1... Nf6 {[%clk 0:02:54.7]} 2. Nf3 {[%clk 0:02:54.6]}
2... d5 {[%clk 0:02:54.4]} 3. Bf4 {[%clk 0:02:54.4]} 3... Bf5 {[%clk 0:02:54.2]}
4. e3 {[%clk 0:02:53.7]} 4... e6 {[%clk 0:02:50.5]} 5. Bd3 {[%clk 0:02:54]} 5...
Ne4 {[%clk 0:02:43.8]} 6. O-O {[%clk 0:02:13.5]} 6... Bd6 {[%clk 0:02:37.9]} 7.
c3 {[%clk 0:02:04.7]} 7... Bxf4 {[%clk 0:02:35.8]} 8. exf4 {[%clk 0:02:05.6]}
8... Nd7 {[%clk 0:02:35.8]} 9. Qc2 {[%clk 0:02:03.4]} 9... O-O {[%clk
0:02:30.4]} 10. Ne5 {[%clk 0:02:03.4]} 10... Nxe5 {[%clk 0:02:29.8]} 11. fxe5
{[%clk 0:02:03.1]} 11... Bg6 {[%clk 0:02:28.5]} 12. f3 {[%clk 0:01:36.5]} 12...
Ng5 {[%clk 0:02:26.3]} 13. h4 {[%clk 0:01:26]} 13... Nxf3+ {[%clk 0:02:17.5]}
14. Rxf3 {[%clk 0:01:22.6]} 14... Qxh4 {[%clk 0:02:18.4]} 15. Nd2 {[%clk
0:01:16.8]} 15... c5 {[%clk 0:02:01.9]} 16. Rh3 {[%clk 0:01:03.4]} 16... Qg5
{[%clk 0:01:56.3]} 17. Nf3 {[%clk 0:00:51.5]} 17... Qe3+ {[%clk 0:01:51.1]} 0-1

[Event "Early-Titled-Tuesday-Blitz-October-17-2023"]
[Site "Chess.com"]
[Date "2023.10.17"]
[Round "2"]
[White "DenisQ"]
[Black "KatakuriDono"]
[Result "1-0"]
[WhiteElo "2647"]
[BlackElo "2374"]
[TimeControl "180+1"]
[EndTime "8:16:01 PDT"]
[Termination "DenisQ won by resignation"]

1. Nf3 {[%clk 0:03:00.9]} 1... d5 {[%clk 0:02:59.4]} 2. c4 {[%clk 0:03:00.2]}
2... d4 {[%clk 0:02:57.9]} 3. g3 {[%clk 0:02:59.4]} 3... g6 {[%clk 0:02:57.8]}
4. Bg2 {[%clk 0:02:59.5]} 4... Bg7 {[%clk 0:02:58.2]} 5. O-O {[%clk 0:03:00]}
5... e5 {[%clk 0:02:58.5]} 6. e3 {[%clk 0:02:59.8]} 6... c5 {[%clk 0:02:54.9]}
7. exd4 {[%clk 0:02:58.6]} 7... exd4 {[%clk 0:02:53.7]} 8. Re1+ {[%clk
0:02:57.9]} 8... Ne7 {[%clk 0:02:53.9]} 9. d3 {[%clk 0:02:57.4]} 9... O-O {[%clk
0:02:43]} 10. b4 {[%clk 0:02:43.6]} 10... cxb4 {[%clk 0:02:33.4]} 11. a3 {[%clk
0:02:43.4]} 11... b3 {[%clk 0:02:32]} 12. Nbd2 {[%clk 0:02:40.4]} 12... Nbc6
{[%clk 0:02:31.2]} 13. Nxb3 {[%clk 0:02:34.6]} 13... h6 {[%clk 0:02:26.7]} 14.
a4 {[%clk 0:02:22.1]} 14... Bf5 {[%clk 0:02:19.8]} 15. Ba3 {[%clk 0:02:20.4]}
15... Re8 {[%clk 0:02:18.5]} 16. Nc5 {[%clk 0:02:13.7]} 16... b6 {[%clk
0:02:02.9]} 17. Ne4 {[%clk 0:02:12.8]} 17... Bxe4 {[%clk 0:01:59.3]} 18. Rxe4
{[%clk 0:02:11.8]} 18... Rc8 {[%clk 0:01:52]} 19. Qe2 {[%clk 0:02:07.6]} 19...
Nf5 {[%clk 0:01:43]} 20. Re1 {[%clk 0:02:05.2]} 20... Rxe4 {[%clk 0:01:40.1]}
21. Qxe4 {[%clk 0:02:06.1]} 21... Qf6 {[%clk 0:01:29]} 22. Bh3 {[%clk
0:01:43.8]} 22... Nd6 {[%clk 0:01:18.1]} 23. Bxd6 {[%clk 0:01:41.2]} 1-0